{"text_format":"3","workbook":"xlsx","n_sheets":6,"sheets":["יומן שיחות מכירה","פרטי קשר של לקוחות","לפני השיחה","שיחה ראשונה","פרטי מכירות","המשך טיפול"],"not_rendered":{"defined_names":14},"read":"whole","date_system":"1900"}

{"sheet":"יומן שיחות מכירה","index":0,"n_rows":13,"n_cols":7,"rows_kept":13}
[null," שם חברה"]
[null,"יומן שיחות מכירה"]
[null,"מס' שיחה","לקוח","חברה","תאריך","שעה","הערות"]
[null,1,"שי שמש",{"$f":"IF(יומן_שיחות_מכירה[[#This Row],[לקוח]]=\"\",\"\",IFERROR(VLOOKUP(יומן_שיחות_מכירה[[#This Row],[לקוח]],פרטי_קשר_של_לקוחות[],2,0),\"Not Found\"))","v":"Proseware, Inc.‎"},{"$f":"TODAY()-5","v":"2016-10-16"},"08:30:00"]
[null,2,"איתי ג'רבי",{"$f":"IF(יומן_שיחות_מכירה[[#This Row],[לקוח]]=\"\",\"\",IFERROR(VLOOKUP(יומן_שיחות_מכירה[[#This Row],[לקוח]],פרטי_קשר_של_לקוחות[],2,0),\"Not Found\"))","v":"Litware, Inc.‎"},{"$f":"TODAY()-5","v":"2016-10-16"},"09:00:00"]
[null,3,"מעיין גולד",{"$f":"IF(יומן_שיחות_מכירה[[#This Row],[לקוח]]=\"\",\"\",IFERROR(VLOOKUP(יומן_שיחות_מכירה[[#This Row],[לקוח]],פרטי_קשר_של_לקוחות[],2,0),\"Not Found\"))","v":"Northwind Traders"},"2016-10-16","09:30:00"]
[null,4,"יונתן ארגוב",{"$f":"IF(יומן_שיחות_מכירה[[#This Row],[לקוח]]=\"\",\"\",IFERROR(VLOOKUP(יומן_שיחות_מכירה[[#This Row],[לקוח]],פרטי_קשר_של_לקוחות[],2,0),\"Not Found\"))","v":"Lucerne Publishing"},"2016-10-16","10:00:00"]
[null,5,"אורי איטון",{"$f":"IF(יומן_שיחות_מכירה[[#This Row],[לקוח]]=\"\",\"\",IFERROR(VLOOKUP(יומן_שיחות_מכירה[[#This Row],[לקוח]],פרטי_קשר_של_לקוחות[],2,0),\"Not Found\"))","v":"Margie's Travel"},"2016-10-16","10:30:00"]
[null,6,"שי שמש",{"$f":"IF(יומן_שיחות_מכירה[[#This Row],[לקוח]]=\"\",\"\",IFERROR(VLOOKUP(יומן_שיחות_מכירה[[#This Row],[לקוח]],פרטי_קשר_של_לקוחות[],2,0),\"Not Found\"))","v":"Proseware, Inc.‎"},{"$f":"TODAY()-3","v":"2016-10-18"},"11:00:00"]
[null,7,"איתי ג'רבי",{"$f":"IF(יומן_שיחות_מכירה[[#This Row],[לקוח]]=\"\",\"\",IFERROR(VLOOKUP(יומן_שיחות_מכירה[[#This Row],[לקוח]],פרטי_קשר_של_לקוחות[],2,0),\"Not Found\"))","v":"Litware, Inc.‎"},{"$f":"TODAY()-3","v":"2016-10-18"},"11:30:00"]
[null,8,"שי שמש",{"$f":"IF(יומן_שיחות_מכירה[[#This Row],[לקוח]]=\"\",\"\",IFERROR(VLOOKUP(יומן_שיחות_מכירה[[#This Row],[לקוח]],פרטי_קשר_של_לקוחות[],2,0),\"Not Found\"))","v":"Proseware, Inc.‎"},{"$f":"TODAY()-1","v":"2016-10-20"},"12:00:00"]
[null,9,"אורי איטון",{"$f":"IF(יומן_שיחות_מכירה[[#This Row],[לקוח]]=\"\",\"\",IFERROR(VLOOKUP(יומן_שיחות_מכירה[[#This Row],[לקוח]],פרטי_קשר_של_לקוחות[],2,0),\"Not Found\"))","v":"Margie's Travel"},{"$f":"TODAY()-1","v":"2016-10-20"},"12:30:00"]
[null,10,"אורי איטון",{"$f":"IF(יומן_שיחות_מכירה[[#This Row],[לקוח]]=\"\",\"\",IFERROR(VLOOKUP(יומן_שיחות_מכירה[[#This Row],[לקוח]],פרטי_קשר_של_לקוחות[],2,0),\"Not Found\"))","v":"Margie's Travel"},{"$f":"TODAY()","v":"2016-10-21"},"13:00:00"]

{"sheet":"פרטי קשר של לקוחות","index":1,"n_rows":8,"n_cols":8,"rows_kept":8}
[null,{"$f":"שם_חברה","v":" שם חברה"}]
[null,"פרטי קשר של לקוחות"]
[null,"שם לקוח","שם חברה","כתובת","עיר, מיקוד","מספר טלפון ראשי","מספר טלפון משני","כתובת דואר אלקטרוני"]
[null,"איתי ג'רבי","Litware, Inc.‎","רחוב ראשי 100","עכו, 12345","04-3333333","04-3333334","itai@litwareinc.com"]
[null,"יונתן ארגוב","Lucerne Publishing","השדרה השניה 56","תל אביב 23456","03-1234567","03-1234568","yonatan@lucernepublishing.com"]
[null,"אורי איטון","Margie's Travel","רחוב התפוזים 98","ירושלים 34567","02-4567890","02-4567891","ori@margiestravel.com"]
[null,"מעיין גולד","Northwind Traders","השדרה השלישית 89","גבעתיים 45678","03-1111111","03-1111112","maayan@northwindtraders.com"]
[null,"שי שמש","Proseware, Inc.‎","רחוב האשכוליות 123","אשקלון 56789","08-9999999","08-9999990","shai@proseware.com"]

{"sheet":"לפני השיחה","index":2,"n_rows":13,"n_cols":3,"rows_kept":13}
[null,{"$f":"שם_חברה","v":" שם חברה"}]
[null,"רשימת פעולות לביצוע של שיחת מכירות"]
[null,"תיבת סימון","לפני השיחה"]
[null,null,"סקירת היסטוריית הלקוח"]
[null,null,"סקירת היסטוריית המעסיק של הלקוח"]
[null,null,"סקירת סדרי העדיפויות ואסטרטגיית המכירות"]
[null,null,"הוסף פריט"]
[null,null,"הוסף פריט"]
[null,null,"הוסף פריט"]
[null,null,"הוסף פריט"]
[null,null,"הוסף פריט"]
[null,null,"הוסף פריט"]
[null,null,"הוסף פריט"]

{"sheet":"שיחה ראשונה","index":3,"n_rows":13,"n_cols":3,"rows_kept":13}
[null,{"$f":"שם_חברה","v":" שם חברה"}]
[null,"רשימת פעולות לביצוע של שיחת מכירות"]
[null,"תיבת סימון","שיחה ראשונה"]
[null,null,"שיחה ישירה אל האדם המתאים"]
[null,null,"הקדמה ברורה"]
[null,null,"הוסף פריט"]
[null,null,"הוסף פריט"]
[null,null,"הוסף פריט"]
[null,null,"הוסף פריט"]
[null,null,"הוסף פריט"]
[null,null,"הוסף פריט"]
[null,null,"הוסף פריט"]
[null,null,"הוסף פריט"]

{"sheet":"פרטי מכירות","index":4,"n_rows":13,"n_cols":3,"rows_kept":13}
[null,{"$f":"שם_חברה","v":" שם חברה"}]
[null,"רשימת פעולות לביצוע של שיחת מכירות"]
[null,"תיבת סימון","פרטי מכירות"]
[null,null,"הקדמה ברורה ומשכנעת למוצר/שירות"]
[null,null,"כיסוי כל היסודות"]
[null,null,"אזכור נושא הנוכחות באינטרנט (לדוגמה, אתר אינטרנט, רשתות חברתיות)"]
[null,null,"הוסף פריט"]
[null,null,"הוסף פריט"]
[null,null,"הוסף פריט"]
[null,null,"הוסף פריט"]
[null,null,"הוסף פריט"]
[null,null,"הוסף פריט"]
[null,null,"הוסף פריט"]

{"sheet":"המשך טיפול","index":5,"n_rows":13,"n_cols":3,"rows_kept":13}
[null,{"$f":"שם_חברה","v":" שם חברה"}]
[null,"רשימת פעולות לביצוע של שיחת מכירות"]
[null,"תיבת סימון","פרטי המשך טיפול"]
[null,null,"פרטי קשר של הלקוח"]
[null,null,"מידע אישי של הלקוח"]
[null,null,"העדפות הלקוח"]
[null,null,"נקבע מועד אחר ליצירת קשר?"]
[null,null,"בוצעה מכירה?"]
[null,null,"הוסף פריט"]
[null,null,"הוסף פריט"]
[null,null,"הוסף פריט"]
[null,null,"הוסף פריט"]
[null,null,"הוסף פריט"]